bitfinex/quotes_SOLUSD_20240615
["timestamp","ask_amount","ask_price","bid_price","bid_amount"]
[1718426826659,19.21,144.97,144.92,0.17]
[1718426826861,23.6109,144.98,144.94,7.6579]
[1718426827068,31.2671,144.98,144.94,7.6579]
[1718426827260,2.5522,144.97,144.94,2.5526]
[1718426827659,23.6107,144.98,144.94,5.1053]
[1718426827852,15.9545,144.98,144.95,2.5525]
[1718426828056,23.6107,144.98,144.94,25.527]
[1718426828255,18.5066,144.98,144.94,22.9744]
[1718426828475,0.333367,144.97,144.94,25.527]
[1718426828674,0.333367,144.97,144.94,7.6579]
[1718426829860,2.885567,144.97,144.94,7.6579]
[1718426830067,0.333367,144.97,144.94,7.6579]
[1718426831086,25.933367,144.97,144.94,15.3164]
[1718426831385,6.4,144.95,144.94,7.6581]
[1718426831756,6.4,144.95,144.92,18.0413]
[1718426832080,33.2568,144.97,144.93,7.6587]
[1718426832081,33.257,144.97,144.93,7.6587]
[1718426832258,6.4,144.94,144.93,7.6587]
[1718426832457,6.4,144.94,144.93,2.5529]
[1718426832860,6.733367,144.94,144.93,2.5529]
[1718426833870,6.733367,144.94,144.85,6.6033]
[1718426834079,0.333367,144.94,144.91,7.6596]
[1718426834277,6.4,144.92,144.91,7.6596]
[1718426834683,6.733367,144.92,144.91,7.6596]
[1718426835885,6.733367,144.92,144.91,2.5531]
[1718426836188,6.733367,144.92,144.9,7.66]
[1718426836391,6.4,144.91,144.9,15.3204]
[1718426836759,17.8683,144.95,144.9,15.3204]
[1718426836760,7.658,144.95,144.91,7.6596]
[1718426836958,6.4,144.92,144.91,7.6596]
[1718426837373,6.733367,144.92,144.91,7.6596]
[1718426837987,6.733367,144.92,144.91,2.5531]
[1718426838787,6.733367,144.92,144.91,25.5328]
[1718426839288,0.333367,144.92,144.91,25.5328]
[1718426839464,6.733367,144.92,144.91,25.5328]
[1718426842605,6.733367,144.92,144.9,7.6602]
[1718426842896,0.333367,144.92,144.91,7.6599]
[1718426843098,6.733367,144.92,144.91,7.6599]
[1718426843299,6.733367,144.92,144.91,2.5533]
[1718426844000,0.333367,144.92,144.91,2.5533]
[1718426844201,6.733367,144.92,144.91,2.5533]
[1718426844498,6.733367,144.92,144.91,7.6599]
[1718426844972,6.733367,144.92,144.91,2.5533]
[1718426845172,0.333367,144.92,144.91,7.6599]
[1718426845372,6.733367,144.92,144.91,7.6599]
[1718426846095,6.733367,144.92,144.91,15.3198]
[1718426846597,6.733367,144.92,144.91,7.6599]
[1718426848496,6.733367,144.92,144.91,15.3198]
[1718426848805,6.733367,144.92,144.91,26.213]
[1718426849002,6.733367,144.92,144.91,25.703]
[1718426851177,6.733367,144.92,144.9,2.5534]
[1718426851477,6.4,144.91,144.9,15.3206]
[1718426852175,6.4,144.91,144.9,7.6602]
[1718426852773,112.8,144.91,144.81,16.0536]
[1718426853002,22.5708,144.92,144.84,2.5545]
[1718426853003,5.1076,144.88,144.84,2.5545]
[1718426853204,6.4,144.85,144.84,2.5545]
[1718426853793,6.733367,144.85,144.84,25.5452]
[1718426856472,6.733367,144.85,144.84,25.7152]
[1718426856678,0.333367,144.85,144.84,26.2252]
[1718426858782,6.733367,144.85,144.84,26.2252]
[1718426859090,0.333367,144.85,144.84,26.2252]
[1718426872522,0.333367,144.85,144.84,32.6252]
[1718426872921,6.4,144.9,144.89,25.7064]
[1718426873126,6.4,144.9,144.89,26.2164]
[1718426873810,2.5528,144.94,144.91,2.5533]
[1718426874014,31.5521,144.95,144.91,2.5533]
[1718426874213,8.5784,144.95,144.91,22.9794]
[1718426874414,6.4,144.92,144.91,7.8296]
[1718426874741,6.733367,144.92,144.91,8.1696]
[1718426876028,6.733367,144.92,144.89,0.17]
[1718426876213,6.4,144.9,144.89,25.8758]
[1718426876407,18.7889,144.95,144.91,2.5532]
[1718426876607,6.4,144.92,144.91,25.7027]
[1718426876807,6.4,144.92,144.91,26.2127]
[1718426877110,6.4,144.92,144.91,15.4896]
[1718426877324,6.4,144.92,144.91,7.8297]
[1718426878030,6.4,144.92,144.91,26.2128]
[1718426878512,23.19817704,144.96,144.93,2.5528]
[1718426878715,6.4,144.94,144.93,2.5529]
[1718426879331,6.4,144.94,144.92,7.659]
[1718426879635,6.4,144.93,144.92,7.829]
[1718426879836,6.4,144.93,144.92,8.339]
[1718426880720,6.4,144.93,144.92,15.9983]
[1718426881725,15.9928,144.96,144.93,2.5529]
[1718426881926,6.4,144.94,144.93,2.5529]
[1718426882821,7.6559,144.99,144.95,2.5524]
[1718426883037,6.4,144.96,144.95,7.6576]
[1718426883219,7.6559,144.99,144.95,5.2752]
[1718426883220,2.552,144.99,144.95,5.2752]
[1718426883422,6.4,144.96,144.95,15.4854]
[1718426883835,6.4,144.96,144.95,25.6958]
[1718426884216,6.4,144.96,144.95,7.8276]
[1718426884411,2.552,144.99,144.95,12.933]
[1718426884723,41.0229,145.0,144.96,2.7223]
[1718426884931,6.4,144.97,144.96,7.8271]
[1718426885236,30.8152,145.0,144.96,2.7223]
[1718426885438,6.4,144.97,144.96,2.7223]
[1718426885641,18.0565,145.0,144.97,2.5522]
[1718426885838,6.4,144.98,144.97,2.5522]
[1718426886224,6.4,144.98,144.96,0.51]
[1718426886530,6.4,144.97,144.96,0.51]
[1718426887440,6.4,144.97,144.96,3.0624]
[1718426888538,15.5047,145.0,144.96,0.51]
[1718426888740,7.20348473,145.01,144.98,2.552]
[1718426888945,6.4,144.99,144.98,2.552]
[1718426889239,6.4,144.99,144.97,25.5216]
[1718426889629,6.4,144.99,144.97,7.6563]
[1718426891137,6.4,144.99,144.98,0.17]
[1718426891748,0.8601448,145.02,145.0,0.17]
[1718426891921,0.8601448,145.02,145.0,0.51]
[1718426892249,6.4,145.01,145.0,0.51]
[1718426892619,6.4,145.01,145.0,3.0617]
[1718426892828,6.4,145.01,145.0,3.2317]
[1718426893644,6.4,145.01,145.0,0.68]
[1718426894028,6.4,145.01,144.7,3.60935353]
[1718426894029,14.0547,145.01,144.97,7.6564]
[1718426894234,18.7203448,145.02,144.97,5.1043]
[1718426894539,6.4,144.98,144.97,7.6565]
[1718426894749,6.4,144.98,144.97,15.3132]
[1718426895119,6.4,144.98,144.97,25.5222]
[1718426895321,6.4,144.98,144.97,25.6922]
[1718426895521,23.8233448,145.02,144.98,22.9683]
[1718426895522,0.8601448,145.02,144.98,22.9683]
[1718426895842,6.4,145.0,144.99,8.3356]
[1718426896232,6.4,145.0,144.99,26.1989]
[1718426899631,0.8601448,145.02,145.0,7.6548]
[1718426899830,6.4,145.01,145.0,7.8248]
[1718426900132,6.4,145.01,145.0,8.3348]
[1718426900649,6.4,145.01,145.0,15.9899]
[1718426901130,6.4,145.01,145.0,7.8251]
[1718426901334,6.4,145.01,145.0,8.3351]
[1718426901740,6.4,145.01,145.0,0.17]
[1718426902043,6.4,145.01,145.0,2.7217]
[1718426902344,6.4,145.01,145.0,0.17]
[1718426903430,6.4,145.01,144.9,112.11108129]
[1718426903623,6.4,145.01,144.96,25.5235]
[1718426903624,6.4,144.97,144.96,25.5235]
[1718426903824,6.4,144.97,144.95,20.42]
[1718426904026,6.4,144.96,144.95,25.5255]
[1718426905031,6.4,144.96,144.95,26.0355]
[1718426905233,6.4,144.96,144.95,26.2055]
[1718426905983,8.9524,144.96,144.92,5.1061]
[1718426906279,6.4,144.93,144.92,2.553]
[1718426906480,6.4,144.93,144.92,7.6592]
[1718426906649,6.4,144.93,144.92,25.531]
[1718426907172,6.4,144.93,144.92,25.701]
[1718426907374,6.4,144.93,144.92,26.211]
[1718426908871,6.4,144.93,144.92,26.2107]
[1718426911560,25.6,144.97,144.94,2.5527]
[1718426911777,28.1522,144.97,144.94,2.5527]
[1718426912376,28.1522,144.97,144.93,15.3172]
[1718426912865,8.9528,144.94,144.9,12.767]
[1718426913048,6.4,144.91,144.9,25.5343]
[1718426914286,6.4,144.91,144.9,25.7043]
[1718426914466,6.4,144.91,144.9,26.0443]
[1718426915874,6.4,144.91,144.9,0.17]
[1718426916065,6.4,144.91,144.89,7.6607]
[1718426916388,6.4,144.9,144.89,7.8307]
[1718426916696,6.4,144.9,144.89,26.0462]
[1718426917253,6.4,144.9,144.88,0.17]
[1718426917472,6.4,144.89,144.88,15.4929]
[1718426917658,8.9536,144.89,144.88,0.51]
[1718426917860,6.4,144.89,144.88,0.51]
[1718426918075,6.4,144.89,144.88,2.7238]
[1718426918281,6.4,144.89,144.88,7.8314]
[1718426918482,6.4,144.89,144.88,25.7082]
[1718426918683,6.4,144.89,144.88,26.0482]
[1718426919566,6.4,144.89,144.87,7.6616]
[1718426919886,6.4,144.88,144.87,25.539]
[1718426921091,6.4,144.88,144.87,26.049]
[1718426922293,2.5533,144.91,144.79,21.557]
[1718426922294,106.2967,144.91,144.79,21.557]
[1718426922503,22.9849,144.88,144.83,12.7733]
[1718426922807,22.9849,144.88,144.84,7.6634]
[1718426922808,2.5539,144.88,144.84,7.6634]
[1718426922967,6.4,144.85,144.84,25.5451]
[1718426923309,2.5538,144.88,144.84,25.5451]
[1718426923599,25.5373,144.89,144.85,2.5543]
[1718426923761,6.4,144.86,144.85,2.5543]
[1718426924365,6.4,144.86,144.84,7.6633]
[1718426924565,22.9834,144.89,144.85,2.5543]
[1718426924775,6.4,144.86,144.84,7.6632]
[1718426924969,7.20510909,144.9,144.85,20.34]
[1718426925202,6.4,144.96,144.9,0.17]
[1718426925379,2.5527,144.95,144.91,7.6596]
[1718426925568,6.2967,144.98,144.93,7.6586]
[1718426925569,2.5523,144.97,144.93,7.6586]
[1718426925774,6.4,144.95,144.94,2.5527]
[1718426925989,6.4,144.95,144.94,7.6582]
[1718426926192,6.4,144.95,144.93,2.5528]
[1718426926696,6.4,144.95,144.94,2.5527]
[1718426926905,2.5522,144.97,144.93,2.5528]
[1718426926906,2.5524,144.96,144.93,2.5528]
[1718426927774,7.6572,144.96,144.93,2.5529]
[1718426928010,2.5524,144.96,144.93,2.5529]
[1718426928702,2.5523,144.97,144.94,2.5527]
[1718426929482,2.5524,144.96,144.93,7.6587]
[1718426929688,7.6572,144.96,144.92,23.4875]
[1718426929906,2.5524,144.96,144.93,2.5529]
[1718426931486,7.6559,144.99,144.96,2.5524]
[1718426931684,2.5521,144.98,144.95,2.5524]
[1718426932209,25.5196,144.99,144.95,7.6575]
[1718426932388,2.552,144.98,144.95,7.6575]
[1718426932581,7.6559,144.99,144.96,2.5524]
[1718426932783,2.552,144.98,144.95,5.1051]
[1718426933006,15.3117,144.99,144.95,7.6575]
[1718426933230,2.552,144.98,144.95,7.6575]
[1718426933522,12.7597,144.99,144.95,7.6575]
[1718426933690,15.3117,144.99,144.95,7.6575]
[1718426934189,2.5521,144.98,144.95,7.6575]
[1718426934600,2.5518,145.0,144.96,18.3767]
[1718426934788,25.5174,145.0,144.96,7.827]
[1718426934999,7.6557,144.99,144.95,25.5251]
[1718426935203,2.552,144.98,144.95,7.6574]
[1718426935718,2.552,144.98,144.95,2.5524]
[1718426936593,17.8635,144.99,144.95,7.6575]
[1718426936792,25.5192,144.99,144.95,7.6575]
[1718426936989,2.552,144.98,144.95,7.6575]
[1718426937492,22.9672,144.99,144.95,7.6575]
[1718426937493,25.5192,144.99,144.95,7.6575]
[1718426938504,7.6559,144.99,144.96,2.5524]
[1718426938694,2.552,144.99,144.96,2.5524]
[1718426939619,7.6554,145.0,144.96,15.3144]
[1718426939825,7.6554,145.0,144.97,2.5522]
[1718426940313,7.6554,145.0,144.96,15.3142]
[1718426940517,12.7588,145.0,144.96,7.6571]
[1718426940724,15.3106,145.0,144.96,7.6571]
[1718426940899,2.5517,145.0,144.97,2.5522]
[1718426941216,25.5177,145.0,144.96,7.6571]
[1718426941604,29.64265654,145.01,144.98,7.6561]
[1718426941792,23.34595654,145.01,144.98,2.552]
[1718426941993,23.34595654,145.01,144.98,7.656]
[1718426942290,31.00055654,145.01,144.97,25.5217]
[1718426942501,31.00055654,145.01,144.97,25.5216]
[1718426942686,31.00055654,145.01,144.98,2.552]
[1718426942890,18.6932,145.01,144.98,2.552]
[1718426943122,16.1417,145.01,144.99,2.5518]
[1718426943317,8.5144448,145.02,144.98,17.8641]
[1718426943494,2.5515,145.01,144.97,17.865]
[1718426943697,108.5143448,145.02,144.98,25.5201]
[1718426943925,108.5143448,145.02,144.98,22.9682]
[1718426944098,108.5143448,145.02,144.98,25.5201]
[1718426944294,0.8601448,145.02,144.99,7.6554]
[1718426944493,0.8601448,145.02,144.99,7.6556]
[1718426944718,11.0661448,145.02,144.97,5.1042]
[1718426944900,7.6548,145.01,144.97,7.6563]
[1718426945416,12.7578,145.01,144.97,7.6563]
[1718426945713,15.3095,145.01,144.97,7.6563]
[1718426946432,7.6549,145.01,144.97,7.6563]
[1718426946624,2.5517,145.0,144.97,2.5521]
[1718426947511,2.5519,144.99,144.95,22.9728]
[1718426947719,117.8624,145.0,144.96,7.6571]
[1718426947720,125.5177,145.0,144.96,7.6571]
[1718426948029,107.6553,145.0,144.96,7.6571]
[1718426948227,107.6552,145.0,144.96,7.6571]
[1718426948441,2.88523333,144.99,144.96,7.6571]
[1718426948632,2.88523333,144.99,144.96,2.5523]
[1718426948835,0.33333333,144.99,144.96,7.6571]
[1718426949009,6.4,144.97,144.96,7.6571]
[1718426949521,6.73333333,144.97,144.96,7.6571]
[1718426949716,0.33333333,144.97,144.94,5.1055]
[1718426949903,0.33333333,144.97,144.96,7.6572]
[1718426950102,6.73333333,144.97,144.96,7.6572]
[1718426950535,0.33333333,144.97,144.96,15.3144]
[1718426950727,6.73333333,144.97,144.96,15.3144]
[1718426951134,6.73333333,144.97,144.96,7.6572]
[1718426951439,6.73333333,144.97,144.96,15.3144]
[1718426951645,6.73333333,144.97,144.96,26.0341]
[1718426951646,0.33333333,144.97,144.96,26.0341]
[1718426951848,0.33333333,144.97,144.96,26.2041]
[1718426952646,6.73333333,144.97,144.96,26.2041]
[1718426953139,6.73333333,144.97,144.96,26.0341]
[1718426953313,6.73333333,144.97,144.96,25.5241]
[1718426954030,6.73333333,144.97,144.96,7.6572]
[1718426954246,6.73333333,144.97,144.96,2.5524]
[1718426954541,6.73333333,144.97,144.96,25.5241]
[1718426955315,6.73333333,144.97,144.9,15.157]
[1718426955316,13.13333333,144.97,144.9,15.157]
[1718426955618,6.4,144.93,144.9,22.8174]
[1718426955846,6.4,144.93,144.92,7.6593]
[1718426956152,6.4,144.93,144.92,25.5311]
[1718426956643,34.57603822,145.0,144.9,21.557]
[1718426956861,2.5519,144.99,144.95,25.525]
[1718426957015,6.4,144.96,144.95,25.5252]
[1718426958050,6.4,144.96,144.95,7.6575]
[1718426958348,6.4,144.96,144.95,2.5526]
[1718426958556,6.4,144.96,144.94,25.5266]
[1718426958745,6.4,144.95,144.94,25.5266]
[1718426958926,6.4,144.95,144.94,18.2087]
[1718426959249,6.4,144.95,144.94,25.867]
[1718426960440,7.6558,144.99,144.95,7.6573]
[1718426960626,6.4,144.96,144.95,7.6573]
[1718426960829,6.4,144.96,144.95,2.5524]
[1718426961846,6.4,144.96,144.94,25.8663]
[1718426962036,6.4,144.96,144.94,2.5527]
[1718426962629,6.4,144.96,144.95,7.6578]
[1718426963846,6.4,144.96,144.95,2.5526]
[1718426964724,6.4,144.96,144.95,7.6578]
[1718426966354,5.1038,144.99,144.95,2.5526]
[1718426966655,6.4,144.96,144.95,15.4854]
[1718426966847,6.4,144.96,144.95,15.9954]
[1718426967430,6.4,144.96,144.95,26.2058]
[1718426968643,22.9644,145.01,144.97,2.5522]
[1718426968957,6.4,144.98,144.94,2.5526]
[1718426969156,6.4,144.95,144.94,7.6581]
[1718426969334,6.4,144.95,144.94,2.5526]
[1718426969536,6.4,144.95,144.94,25.5275]
[1718426969858,6.4,144.96,144.94,22.9749]
[1718426970036,6.4,144.96,144.94,25.5275]
[1718426970239,6.4,144.96,144.95,2.5526]
[1718426971570,22.9661,145.0,144.96,2.5523]
[1718426971731,6.4,144.97,144.96,2.5523]
[1718426972158,6.4,144.97,144.95,26.0358]
[1718426972351,6.4,144.96,144.95,26.0358]
[1718426972560,6.4,144.96,144.95,26.2058]
[1718426973145,6.4,144.96,144.95,2.7224]
[1718426973343,6.4,144.96,144.94,25.5267]
[1718426973660,6.4,144.96,144.95,2.5526]
[1718426973862,6.4,144.96,144.95,15.3156]
[1718426974749,6.4,144.96,144.95,7.6578]
[1718426975251,6.4,144.96,144.95,15.3156]
[1718426975565,6.4,144.96,144.95,2.5526]
[1718426976963,6.4,144.96,144.95,7.6578]
[1718426977160,6.4,144.96,144.9,15.157]
[1718426977371,8.9525,144.96,144.93,2.5528]
[1718426977578,8.9525,144.96,144.92,22.9769]
[1718426977579,6.4,144.94,144.92,25.5298]
[1718426977876,7.6573,144.96,144.92,25.5298]
[1718426977877,6.4,144.93,144.92,25.5298]
[1718426981448,6.4,144.93,144.92,7.6588]
[1718426981754,33.2568,144.97,144.93,7.6584]
[1718426982379,40.9135,144.97,144.93,7.6584]
[1718426982667,25.6,144.97,144.95,2.5525]
[1718426982849,6.4,144.96,144.94,2.5526]
[1718426983050,6.4,144.95,144.94,2.5526]
[1718426984549,25.6,144.97,144.95,2.5525]
[1718426984856,6.4,144.96,144.95,2.5525]
[1718426986546,7.6559,144.99,144.96,2.5524]
[1718426986868,6.4,144.97,144.96,2.5524]
[1718426987054,6.4,144.97,144.95,25.6958]
[1718426987239,6.4,144.96,144.95,25.6958]
[1718426987441,6.4,144.96,144.95,2.5524]
[1718426987859,6.4,144.96,144.95,26.2058]
[1718426990156,6.4,144.96,144.95,0.34]
[1718426990473,6.4,144.96,144.94,25.5267]
[1718426991573,6.4,144.96,144.94,2.5526]
[1718426991753,6.4,144.96,144.94,7.6581]
[1718426992076,6.4,144.95,144.93,2.5529]
[1718426992296,6.4,144.94,144.93,2.5529]
[1718426992454,6.4,144.94,144.9,15.157]
[1718426992959,6.4,144.94,144.92,7.6591]
[1718426993754,6.4,144.94,144.92,15.3184]
[1718426994074,6.4,144.94,144.92,25.5308]
[1718426994250,6.4,144.94,144.93,2.5529]
[1718426994661,22.971,144.97,144.93,2.5529]
[1718426994955,6.4,144.94,144.93,2.7229]
[1718426995270,6.4,144.94,144.93,3.0629]
[1718426995658,2.5522,144.97,144.93,23.6565]
[1718426995870,6.4,144.94,144.93,26.0393]
[1718426996067,6.4,144.94,144.93,26.2093]
[1718426996797,7.19748022,145.0,144.93,26.2093]
[1718426996798,7.19748022,145.0,144.96,5.1045]
[1718426997090,6.4,144.97,144.95,17.8676]
[1718426997261,6.4,144.96,144.95,7.8274]
[1718426997578,6.4,144.96,144.95,2.5526]
[1718426997885,6.4,144.96,144.94,7.8279]
[1718426998673,2.5521,144.98,144.95,2.8926]
[1718426998855,6.4,144.96,144.95,3.0626]
[1718426999070,6.4,144.96,144.95,0.68]
[1718426999578,22.9676,144.99,144.95,3.2326]
[1718426999777,6.4,144.96,144.95,8.3377]
[1718426999956,6.4,144.96,144.95,0.34]
[1718427000161,6.4,144.96,144.95,2.5526]
[1718427000363,6.4,144.96,144.94,15.3162]
[1718427000970,6.4,144.96,144.94,7.658]
[1718427001690,7.19748022,145.0,144.97,10.2089]
[1718427001993,6.4,144.98,144.97,2.7221]
[1718427002171,6.4,144.99,144.97,3.0621]
[1718427002892,6.4,144.99,144.97,3.0622]
[1718427003903,6.4,144.99,144.97,0.51]
[1718427004088,6.4,144.99,144.97,3.0622]
[1718427004400,6.4,144.99,144.97,0.51]
[1718427004607,25.5155,145.01,144.98,0.34]
[1718427004812,6.4,144.99,144.98,0.34]
[1718427005398,6.73333333,144.99,144.98,0.34]
[1718427005598,6.73333333,144.99,144.97,7.9966]
[1718427005802,6.73333333,144.99,144.96,0.17]
[1718427006112,8.9523,144.97,144.93,5.1057]
[1718427006323,6.4,144.96,144.94,2.5527]
[1718427006489,6.4,144.96,144.94,7.6582]
[1718427006682,6.4,144.96,144.93,7.6585]
[1718427006876,6.4,144.95,144.93,2.5528]
[1718427007194,6.4,144.95,144.93,7.6586]
[1718427007691,6.4,144.96,144.94,7.6583]
[1718427007906,2.552,144.99,144.96,2.5523]
[1718427008091,7.6553,145.0,144.96,7.6571]
[1718427008279,6.4,144.97,144.96,7.8271]
[1718427008479,6.4,144.97,144.96,15.6543]
[1718427008686,6.4,144.97,144.96,7.9971]
[1718427009076,6.4,144.97,144.96,2.8923]
[1718427011514,6.4,144.97,144.96,25.864]
[1718427011722,2.5517,145.0,144.97,2.7222]
[1718427011927,6.4,144.98,144.97,0.17]
[1718427012086,6.4,144.98,144.97,0.34]
[1718427012717,6.4,144.98,144.96,7.9971]
[1718427012908,6.4,144.97,144.96,7.9971]
[1718427013090,6.4,144.97,144.96,8.3371]
[1718427013292,5.1035,145.0,144.96,8.3371]
[1718427013510,7.6553,145.0,144.96,8.3371]
[1718427013694,6.4,144.97,144.96,8.3371]
[1718427013896,6.4,144.97,144.96,3.2323]
[1718427015021,6.4,144.97,144.96,0.68]
[1718427015805,8.9522,144.97,144.96,0.68]
[1718427016001,6.4,144.97,144.96,0.68]
[1718427016604,2.5519,144.99,144.96,3.2324]
[1718427016809,6.4,144.97,144.96,8.3369]
[1718427017832,6.4,144.97,144.86,15.6161]
[1718427017833,127.9581,144.97,144.86,15.6161]
[1718427017996,6.4,144.88,144.87,2.554]
[1718427018197,6.4,144.88,144.85,14.1524]
[1718427018418,6.4,144.86,144.84,22.9898]
[1718427018610,2.5539,144.88,144.84,2.5543]
[1718427018611,5.1077,144.88,144.84,2.5543]
[1718427018806,6.4,144.85,144.84,2.5543]
[1718427019011,6.4,144.85,144.83,5.1093]
[1718427019230,6.4,144.85,144.83,7.6639]
[1718427019537,6.4,144.85,144.84,2.5545]
[1718427020125,6.4,144.85,144.84,7.6635]
[1718427020737,6.4,144.85,144.84,2.5545]
[1718427021034,6.4,144.85,144.84,7.6635]
[1718427021730,6.4,144.85,144.77,6.2359]
[1718427021906,6.4,144.81,144.8,2.5552]
[1718427022529,6.4,144.81,144.8,25.5522]
[1718427023032,6.4,144.81,144.8,7.6656]
[1718427023522,6.4,144.81,144.76,15.5506]
[1718427023523,11.5103,144.81,144.76,15.5506]
[1718427023727,6.4,144.77,144.76,20.4473]
[1718427024035,6.4,144.77,144.76,25.5592]
[1718427024523,6.4,144.77,144.73,6.2359]
[1718427024524,25.6,144.83,144.8,7.6653]
[1718427024826,6.4,144.81,144.8,2.555]
[1718427025030,16.1405,144.84,144.81,7.665]
[1718427025210,6.4,144.82,144.81,2.5549]
[1718427025413,6.0073,144.85,144.81,0.34]
[1718427025723,6.4,144.83,144.82,7.8343]
[1718427025929,6.4,144.83,144.82,2.5547]
[1718427026136,6.4,144.83,144.81,2.5549]
[1718427026431,6.4,144.82,144.81,7.665]
[1718427026640,2.5543,144.86,144.82,5.1097]
[1718427026848,6.4,144.83,144.82,15.4989]
[1718427027128,100.0,144.88,144.84,7.6634]
[1718427027129,15.3234,144.88,144.84,7.6634]
[1718427027340,6.4,144.85,144.84,25.5451]
[1718427027520,164.7222,144.9,144.85,22.9889]
[1718427027713,2.5536,144.89,144.86,0.34]
[1718427027929,6.4,144.87,144.86,26.0514]
[1718427028235,6.4,144.87,144.86,18.3889]
[1718427028419,6.4,144.87,144.86,8.1722]
[1718427028617,6.4,144.87,144.86,3.064]
[1718427028811,2.5537,144.89,144.86,3.064]
[1718427030648,7.6605,144.9,144.87,2.554]
[1718427031035,7.6605,144.9,144.85,3.0]
[1718427031036,100.0,144.9,144.85,3.0]
[1718427031219,7.6624,144.86,144.85,3.0]
[1718427031615,7.6621,144.87,144.85,3.0]
[1718427032016,22.9852,144.88,144.85,3.0]
[1718427032322,2.5541,144.86,144.85,3.0]
[1718427033112,25.5416,144.86,144.85,3.0]
[1718427033317,2.5541,144.86,144.85,3.0]
[1718427033508,7.6622,144.87,144.85,3.0]
[1718427035945,2.5541,144.87,144.85,3.0]
[1718427036544,2.5538,144.88,144.85,3.0]
[1718427036743,2.554,144.87,144.85,3.0]
[1718427037142,25.5385,144.88,144.85,3.0]
[1718427037343,2.554,144.87,144.85,3.0]
[1718427038054,7.662,144.87,144.85,3.0]
[1718427038571,7.6624,144.86,144.85,3.0]
[1718427039163,25.5416,144.86,144.85,3.0]
[1718427039558,44.7716,144.86,144.85,3.0]
[1718427040048,26.8924,144.86,144.85,3.0]
[1718427040571,19.23,144.86,144.85,3.0]
[1718427041648,2.5541,144.87,144.85,3.0]
[1718427042482,7.6622,144.87,144.85,3.0]
[1718427042655,7.6624,144.86,144.85,3.0]
[1718427042970,25.5416,144.86,144.85,3.0]
[1718427043304,7.6624,144.86,144.85,3.0]
[1718427044162,2.5541,144.86,144.85,3.0]
[1718427046278,7.6624,144.86,144.85,3.0]
[1718427046575,7.20090917,144.88,144.85,3.51]
[1718427046779,12.7693,144.88,144.85,3.51]
[1718427046984,2.554,144.87,144.85,3.51]
[1718427047167,7.662,144.87,144.85,3.51]
[1718427047479,2.554,144.87,144.85,3.51]
[1718427047655,24.3375,144.89,144.85,18.8357]
[1718427047979,26.8912,144.89,144.86,2.5541]
[1718427048656,26.8912,144.89,144.85,18.8357]
[1718427048966,7.6622,144.87,144.85,3.0]
[1718427049477,15.3242,144.87,144.85,3.0]
[1718427049680,22.9854,144.88,144.85,3.0]